fUST/lending_fUST_20240721
["ID","MTS","AMOUNT","RATE_DAILY","PERIOD"]
[332799833,1721532645503,-504.61777039,0.00013698,2]
[332799834,1721532645514,-1468.73,0.00013698,2]
[332799835,1721532645523,-500.0,0.00013698,2]
[332799836,1721532645534,-500.0,0.00013698,2]
[332799837,1721532645544,-546.61,0.00013698,2]
[332799838,1721532645554,-500.0,0.00013698,2]
[332799839,1721532645563,-500.0,0.00013698,2]
[332799840,1721532645573,-697.56,0.00013698,2]
[332799841,1721532645582,-985.85,0.00013698,2]
[332799842,1721532645591,-480.92618224,0.00013698,2]
[332799843,1721532645601,-1969.99,0.00013698,2]
[332799844,1721532645610,-500.0,0.00013698,2]
[332799845,1721532645619,-500.0,0.00013698,2]
[332799846,1721532645629,-500.0,0.00013698,2]
[332799847,1721532645638,-500.0,0.00013698,2]
[332799848,1721532645647,-1411.83,0.00013698,2]
[332799849,1721532645656,-745.11,0.00013698,2]
[332799850,1721532645666,-993.84,0.00013698,2]
[332799851,1721532645675,-500.0,0.00013698,2]
[332799852,1721532645684,-500.0,0.00013698,2]
[332799853,1721532645693,-500.0,0.00013698,2]
[332799854,1721532645703,-500.0,0.00013698,2]
[332799855,1721532645712,-500.0,0.00013698,2]
[332799856,1721532645721,-500.0,0.00013698,2]
[332799857,1721532645730,-500.0,0.00013698,2]
[332799858,1721532645739,-500.0,0.00013698,2]
[332799859,1721532645749,-500.0,0.00013698,2]
[332799860,1721532645759,-500.0,0.00013698,2]
[332799861,1721532645768,-500.0,0.00013698,2]
[332799862,1721532645778,-265.28233253,0.00013698,2]
[332799863,1721532645787,-1257.69,0.00013698,2]
[332799864,1721532645797,-500.0,0.00013698,2]
[332799865,1721532645806,-603.44,0.00013698,2]
[332799866,1721532645816,-500.0,0.00013698,2]
[332799867,1721532645825,-1048.19,0.00013698,2]
[332799868,1721532645835,-607.27,0.00013698,2]
[332799869,1721532645844,-500.0,0.00013698,2]
[332799870,1721532645854,-3509.05,0.00013698,2]
[332799871,1721532645863,-500.0,0.00013698,2]
[332799872,1721532645873,-500.0,0.00013698,2]
[332799873,1721532645883,-500.0,0.00013698,2]
[332799874,1721532645892,-3192.94,0.00013698,2]
[332799875,1721532645902,-500.0,0.00013698,2]
[332799876,1721532645912,-1686.5,0.00013698,2]
[332799877,1721532645922,-4683.45,0.00013698,2]
[332799878,1721532645932,-501.43167891,0.00013698,2]
[332799879,1721532645942,-4565.25363559,0.00013698,2]
[332799880,1721532646009,-6883.80636441,0.00013698,2]
[332799881,1721532646019,-1708.93,0.00013698,2]
[332799882,1721532646029,-500.0,0.00013698,2]
[332799883,1721532646039,-1906.3,0.00013698,2]
[332799884,1721532646049,-500.0,0.00013698,2]
[332799885,1721532646059,-1360.02,0.00013698,2]
[332799886,1721532646069,-2591.82,0.00013698,2]
[332799887,1721532646079,-500.0,0.00013698,2]
[332799888,1721532646089,-2571.24,0.00013698,2]
[332799889,1721532646098,-773.443423,0.00013698,2]
[332799890,1721532646108,-500.0,0.00013698,2]
[332799891,1721532646117,-516.4052042,0.00013698,2]
[332799892,1721532646127,-773.443423,0.00013698,2]
[332799893,1721532646136,-2283.76,0.00013698,2]
[332799894,1721532646145,-2024.97,0.00013698,2]
[332799895,1721532646155,-715.37,0.00013698,2]
[332799896,1721532646165,-4979.59,0.00013698,2]
[332799897,1721532646175,-518.55,0.00013698,2]
[332799898,1721532646184,-500.0,0.00013698,2]
[332799899,1721532646193,-640.12,0.00013698,2]
[332799900,1721532646202,-500.0,0.00013698,2]
[332799901,1721532646212,-1058.87,0.00013698,2]
[332799902,1721532646221,-500.0,0.00013698,2]
[332799903,1721532646230,-3025.36,0.00013698,2]
[332799904,1721532646239,-895.45,0.00013698,2]
[332799905,1721532646249,-500.0,0.00013698,2]
[332799906,1721532646260,-500.0,0.00013698,2]
[332799907,1721532646270,-500.0,0.00013698,2]
[332799908,1721532646280,-635.59,0.00013698,2]
[332799909,1721532646292,-1824.0,0.00013698,2]
[332799910,1721532646301,-500.0,0.00013698,2]
[332799911,1721532646311,-567.09916693,0.00013698,2]
[332799912,1721532646320,-1087.85,0.00013698,2]
[332799913,1721532646329,-1283.11,0.00013698,2]
[332799914,1721532646339,-8640.91,0.00013698,2]
[332799915,1721532646352,-501.54499791,0.00013698,2]
[332799916,1721532646361,-936.75,0.00013698,2]
[332799917,1721532646370,-500.0,0.00013698,2]
[332799918,1721532646380,-500.0,0.00013698,2]
[332799919,1721532646390,-500.0,0.00013698,2]
[332799920,1721532646400,-500.0,0.00013698,2]
[332799921,1721532646409,-500.0,0.00013698,2]
[332799922,1721532646420,-500.0,0.00013698,2]
[332799923,1721532646431,-500.0,0.00013698,2]
[332799924,1721532646441,-500.0,0.00013698,2]
[332799926,1721532646451,-500.0,0.00013698,2]
[332799927,1721532646460,-245.90148545,0.00013698,2]
[332799929,1721532646470,-932.29,0.00013698,2]
[332799931,1721532646480,-500.0,0.00013698,2]
[332799933,1721532646489,-500.0,0.00013698,2]
[332799935,1721532646499,-501.3188156,0.00013698,2]
[332799937,1721532646508,-1120.63,0.00013698,2]
[332799939,1721532646518,-500.0,0.00013698,2]
[332799940,1721532646527,-1135.11,0.00013698,2]
[332799941,1721532646537,-12255.37,0.00013698,2]
[332799943,1721532646547,-500.0,0.00013698,2]
[332799945,1721532646557,-1754.49,0.00013698,2]
[332799947,1721532646566,-2312.84,0.00013698,2]
[332799950,1721532646575,-3127.24,0.00013698,2]
[332799953,1721532646585,-500.0,0.00013698,2]
[332799956,1721532646594,-3127.24,0.00013698,2]
[332799958,1721532646603,-677.83,0.00013698,2]
[332799961,1721532646613,-3127.24,0.00013698,2]
[332799962,1721532646622,-955.41,0.00013698,2]
[332799964,1721532646631,-3127.24,0.00013698,2]
[332799965,1721532646641,-3127.24,0.00013698,2]
[332799966,1721532646651,-500.0,0.00013698,2]
[332799967,1721532646662,-3127.24,0.00013698,2]
[332799968,1721532646672,-3127.24,0.00013698,2]
[332799969,1721532646682,-3127.24,0.00013698,2]
[332799970,1721532646692,-500.0,0.00013698,2]
[332799971,1721532646701,-500.0,0.00013698,2]
[332799972,1721532646710,-3127.24,0.00013698,2]
[332799973,1721532646719,-3127.24,0.00013698,2]
[332799974,1721532646730,-3127.24,0.00013698,2]
[332799975,1721532646740,-3127.24,0.00013698,2]
[332799976,1721532646750,-3127.24,0.00013698,2]
[332799977,1721532646759,-3127.24,0.00013698,2]
[332799978,1721532646768,-500.0,0.00013698,2]
[332799979,1721532646779,-1511.4,0.00013698,2]
[332799980,1721532646790,-500.0,0.00013698,2]
[332799981,1721532646800,-2167.15,0.00013698,2]
[332799982,1721532646810,-500.0,0.00013698,2]
[332799983,1721532646820,-500.0,0.00013698,2]
[332799984,1721532646830,-500.0,0.00013698,2]
[332799985,1721532646840,-519.30896998,0.00013698,2]
[332799986,1721532646849,-500.0,0.00013698,2]
[332799987,1721532646858,-500.0,0.00013698,2]
[332799988,1721532646868,-728.43,0.00013698,2]
[332799989,1721532646877,-500.0,0.00013698,2]
[332799990,1721532646887,-500.0,0.00013698,2]
[332799991,1721532646896,-500.0,0.00013698,2]
[332799992,1721532646905,-500.0,0.00013698,2]
[332799993,1721532646915,-500.0,0.00013698,2]
[332799994,1721532646925,-500.0,0.00013698,2]
[332799995,1721532646934,-502.87563975,0.00013698,2]
[332799996,1721532646943,-1033.34,0.00013698,2]
[332799997,1721532646953,-500.0,0.00013698,2]
[332799998,1721532646962,-500.90681848,0.00013698,2]
[332799999,1721532646972,-1807.24,0.00013698,2]
[332800000,1721532646981,-511.95798033,0.00013698,2]
[332800001,1721532647001,-500.0,0.00013698,2]
[332800002,1721532647013,-500.0,0.00013698,2]
[332800003,1721532647024,-500.0,0.00013698,2]
[332800004,1721532647034,-500.0,0.00013698,2]
[332800005,1721532647045,-535.76075308,0.00013698,2]
[332800006,1721532647055,-4094.45,0.00013698,2]
[332800007,1721532647066,-500.0,0.00013698,2]
[332800008,1721532647076,-500.0,0.00013698,2]
[332800009,1721532647086,-518.7292107,0.00013698,2]
[332800010,1721532647096,-500.0,0.00013698,2]
[332800011,1721532647107,-1403.62,0.00013698,2]
[332800012,1721532647117,-500.0,0.00013698,2]
[332800013,1721532647127,-500.43250489,0.00013698,2]
[332800014,1721532647138,-1174.9,0.00013698,2]
[332800015,1721532647149,-195.750619,0.00013699,2]
[332800016,1721532647159,-3000.0,0.00013699,2]
[332800017,1721532647169,-5304.19710114,0.00013781,2]
[332800018,1721532647180,-3127.24,0.00013835,2]
[332800019,1721532647190,-367.35615468,0.00013838,2]
[332800020,1721532647200,-71737.06663273,0.000139,2]
[332800027,1721532647979,-7203.23,0.00013698,2]
[332800029,1721532647989,-1189.51,0.00013698,2]
[332800030,1721532647999,-548.9,0.00013698,2]
[332800031,1721532648009,-500.0,0.00013698,2]
[332800032,1721532648019,-116789.73940158,0.000139,2]
[332800033,1721532648028,-726.45277176,0.00013961,2]
[332800034,1721532648037,-4358.71663056,0.00013962,2]
[332800035,1721532648046,-500.0,0.0001397,2]
[332800036,1721532648056,-155.0,0.0001397,2]
[332800037,1721532648065,-3127.24,0.0001397,2]
[332800038,1721532648074,-500.0,0.00013971,2]
[332800039,1721532648084,-500.0,0.00013971,2]
[332800040,1721532648093,-500.0,0.00013971,2]
[332800041,1721532648103,-500.0,0.00013971,2]
[332800042,1721532648112,-500.0,0.00013971,2]
[332800043,1721532648122,-500.0,0.00013971,2]
[332800044,1721532648132,-500.0,0.00013971,2]
[332800045,1721532648142,-500.0,0.00013971,2]
[332800046,1721532648151,-500.0,0.00013971,2]
[332800048,1721532648161,-500.0,0.00013971,2]
[332800049,1721532648170,-500.0,0.00013971,2]
[332800051,1721532648179,-549.25474034,0.00013971,2]
[332800053,1721532648189,-151.0,0.00013971,2]
[332800054,1721532648199,-500.0,0.00013971,2]
[332800055,1721532648209,-500.0,0.00013971,2]
[332800056,1721532648219,-3127.24,0.00013971,2]
[332800057,1721532648228,-3127.24,0.00013971,2]
[332800058,1721532648239,-3127.24,0.00013971,2]
[332800059,1721532648250,-3127.24,0.00013971,2]
[332800060,1721532648262,-3127.24,0.00013971,2]
[332800061,1721532648272,-3127.24,0.00013971,2]
[332800062,1721532648284,-3127.24,0.00013971,2]
[332800063,1721532648294,-3127.34092737,0.00013971,2]
[332800064,1721532648303,-500.0,0.00013971,2]
[332800065,1721532648314,-500.0,0.00013971,2]
[332800066,1721532648328,-291.18737094,0.00013971,2]
[332800067,1721532648339,-29568.53027479,0.00013972,5]
[332800068,1721532648354,-500.0,0.00013972,2]
[332800069,1721532648365,-500.0,0.00013972,2]
[332800070,1721532648377,-500.0,0.00013972,2]
[332800071,1721532648388,-500.0,0.00013972,2]
[332800072,1721532648398,-500.0,0.00013972,2]
[332800073,1721532648407,-811.65,0.00013972,2]
[332800074,1721532648418,-500.0,0.00013972,2]
[332800075,1721532648430,-825.4,0.00013972,2]
[332800076,1721532648439,-500.0,0.00013972,2]
[332800077,1721532648451,-869.65,0.00013972,2]
[332800078,1721532648461,-189.30105114,0.00013972,2]
[332800079,1721532648471,-500.0,0.00013972,2]
[332800080,1721532648481,-705.87,0.00013972,2]
[332800081,1721532648490,-500.0,0.00013972,2]
[332800082,1721532648500,-949.06,0.00013972,2]
[332800083,1721532648510,-500.0,0.00013972,2]
[332800084,1721532648519,-500.0,0.00013972,2]
[332800085,1721532648529,-710.22,0.00013972,2]
[332800086,1721532648539,-377.5,0.00013972,2]
[332800087,1721532648549,-500.0,0.00013972,2]
[332800088,1721532648559,-501.10459886,0.00013972,2]
[332800089,1721532648568,-502.11194935,0.00013972,2]
[332800090,1721532648578,-547.59,0.00013972,2]
[332800091,1721532648588,-624.06,0.00013972,2]
[332800092,1721532648598,-500.0,0.00013972,2]
[332800093,1721532648608,-500.0,0.00013972,2]
[332800094,1721532648618,-500.0,0.00013972,2]
[332800095,1721532648628,-501.84,0.00013972,2]
[332800096,1721532648637,-500.0,0.00013972,2]
[332800097,1721532648647,-500.0,0.00013972,2]
[332800098,1721532648657,-500.0,0.00013972,2]
[332800099,1721532648666,-500.0,0.00013972,2]
[332800100,1721532648680,-504.07455151,0.00013972,2]
[332800101,1721532648691,-500.0,0.00013972,2]
[332800102,1721532648701,-1097.8,0.00013972,2]
[332800103,1721532648711,-500.0,0.00013972,2]
[332800104,1721532648722,-504.29453083,0.00013972,2]
[332800105,1721532648731,-500.0,0.00013972,2]
[332800106,1721532648741,-500.0,0.00013972,2]
[332800107,1721532648751,-557.84985499,0.00013972,2]
[332800108,1721532648761,-514.33580415,0.00013972,2]
[332800109,1721532648770,-473.18271904,0.00013972,2]
[332800110,1721532648781,-500.0,0.00013972,2]
[332800111,1721532648791,-551.87,0.00013972,2]
[332800112,1721532648804,-500.0,0.00013972,2]
[332800113,1721532648815,-500.0,0.00013972,2]
[332800114,1721532648825,-500.0,0.00013972,2]
[332800115,1721532648835,-500.0,0.00013972,2]
[332800116,1721532648845,-502.92599798,0.00013972,2]
[332800117,1721532648855,-500.0,0.00013972,2]
[332800118,1721532648864,-500.0,0.00013972,2]
[332800119,1721532648874,-500.0,0.00013972,2]
[332800120,1721532648885,-502.24,0.00013972,2]
[332800121,1721532648895,-500.0,0.00013972,2]
[332800122,1721532648906,-500.0,0.00013972,2]
[332800123,1721532648916,-500.0,0.00013972,2]
[332800124,1721532648927,-606.58,0.00013972,2]
[332800125,1721532648938,-500.0,0.00013972,2]
[332800126,1721532648948,-500.0,0.00013972,2]
[332800127,1721532648958,-500.0,0.00013972,2]
[332800128,1721532648968,-500.0,0.00013972,2]
[332800129,1721532648978,-500.0,0.00013972,2]
[332800130,1721532648989,-503.73580191,0.00013972,2]
[332800131,1721532649000,-500.0,0.00013972,2]
[332800132,1721532649010,-500.0,0.00013972,2]
[332800133,1721532649021,-500.0,0.00013972,2]
[332800134,1721532649031,-543.79927098,0.00013972,2]
[332800135,1721532649042,-500.0,0.00013972,2]
[332800136,1721532649056,-500.0,0.00013972,2]
[332800137,1721532649066,-500.0,0.00013972,2]
[332800138,1721532649078,-746.29,0.00013972,2]
[332800139,1721532649088,-500.0,0.00013972,2]
[332800140,1721532649098,-362.07545012,0.00013972,2]
[332800141,1721532649108,-500.0,0.00013972,2]
[332800142,1721532649119,-500.0,0.00013972,2]
[332800143,1721532649129,-274.77327132,0.00013972,2]
[332800144,1721532649139,-500.0,0.00013972,2]
[332800145,1721532649149,-500.0,0.00013972,2]
[332800146,1721532649159,-500.0,0.00013972,2]
[332800147,1721532649170,-500.0,0.00013972,2]
[332800148,1721532649181,-361.5040045,0.00013972,2]
[332800149,1721532649191,-500.0,0.00013972,2]
[332800150,1721532649202,-500.0,0.00013972,2]
[332800151,1721532649213,-628.51,0.00013972,2]
[332800152,1721532649223,-512.77449406,0.00013972,2]
[332800153,1721532649233,-500.0,0.00013972,2]
[332800154,1721532649244,-500.0,0.00013972,2]
[332800155,1721532649254,-505.92769148,0.00013972,2]
[332800156,1721532649265,-500.0,0.00013972,2]
[332800157,1721532649276,-500.0,0.00013972,2]
[332800158,1721532649287,-500.0,0.00013972,2]
[332800159,1721532649298,-1062.11,0.00013972,2]
[332800160,1721532649308,-2331.2,0.00013972,2]
[332800161,1721532649318,-500.0,0.00013972,2]
[332800162,1721532649327,-520.34,0.00013972,2]
[332800163,1721532649337,-257.77649434,0.00013972,2]
[332800164,1721532649350,-297.81478133,0.00013972,2]
[332800165,1721532649360,-500.0,0.00013972,2]
[332800166,1721532649371,-500.0,0.00013972,2]
[332800167,1721532649381,-500.0,0.00013972,2]
[332800168,1721532649392,-500.0,0.00013972,2]
[332800169,1721532649404,-500.0,0.00013972,2]
[332800170,1721532649415,-603.01,0.00013972,2]
[332800171,1721532649425,-505.39149835,0.00013972,2]
[332800172,1721532649437,-621.17,0.00013972,2]
[332800173,1721532649447,-500.0,0.00013972,2]
[332800174,1721532649458,-500.0,0.00013972,2]
[332800175,1721532649468,-544.25,0.00013972,2]
[332800176,1721532649478,-580.74,0.00013972,2]
[332800177,1721532649489,-1746.75,0.00013972,2]
[332800178,1721532649499,-777.01,0.00013972,2]
[332800179,1721532649511,-500.0,0.00013972,2]
[332800180,1721532649522,-500.0,0.00013972,2]
[332800181,1721532649532,-500.0,0.00013972,2]
[332800182,1721532649543,-500.0,0.00013972,2]
[332800183,1721532649556,-171.40599026,0.00013972,2]
[332800184,1721532649566,-758.9,0.00013972,2]
[332800185,1721532649576,-2818.74,0.00013972,2]
[332800186,1721532649585,-500.0,0.00013972,2]
[332800187,1721532649595,-500.0,0.00013972,2]
[332800188,1721532649605,-500.0,0.00013972,2]
[332800189,1721532649615,-790.98,0.00013972,2]
[332800190,1721532649625,-500.0,0.00013972,2]
[332800191,1721532649636,-617.71,0.00013972,2]
[332800192,1721532649646,-553.17107908,0.00013972,2]
[332800193,1721532649656,-500.0,0.00013972,2]
[332800194,1721532649667,-500.0,0.00013972,2]
[332800195,1721532649678,-633.18,0.00013972,2]
[332800196,1721532649689,-500.0,0.00013972,2]
[332800197,1721532649699,-925.23,0.00013972,2]
[332800198,1721532649708,-500.0,0.00013972,2]
[332800199,1721532649719,-500.0,0.00013972,2]
[332800200,1721532649729,-1173.25,0.00013972,2]
[332800201,1721532649739,-630.88,0.00013972,2]
[332800202,1721532649749,-1534.17,0.00013972,2]
[332800203,1721532649762,-2056.1,0.00013972,2]
[332800204,1721532649774,-500.0,0.00013972,2]
[332800205,1721532649784,-534.93,0.00013972,2]
[332800206,1721532649794,-500.0,0.00013972,2]
[332800207,1721532649803,-504.86512763,0.00013972,2]
[332800208,1721532649813,-500.0,0.00013972,2]
[332800209,1721532649822,-1107.23,0.00013972,2]
[332800210,1721532649831,-500.0,0.00013972,2]
[332800211,1721532649840,-500.0,0.00013972,2]
[332800212,1721532649849,-2867.08,0.00013972,2]
[332800213,1721532649859,-500.0,0.00013972,2]
[332800214,1721532649868,-500.0,0.00013972,2]
[332800215,1721532649879,-503.35722576,0.00013972,2]
[332800216,1721532649888,-806.1,0.00013972,2]
[332800217,1721532649898,-500.0,0.00013972,2]
[332800218,1721532649909,-511.29,0.00013972,2]
[332800219,1721532649919,-500.0,0.00013972,2]
[332800220,1721532649929,-513.96833287,0.00013972,2]
[332800221,1721532649938,-500.0,0.00013972,2]
[332800222,1721532649948,-558.09,0.00013972,2]
[332800223,1721532649958,-509.41848931,0.00013972,2]
[332800224,1721532649968,-564.09,0.00013972,2]
[332800225,1721532649978,-500.0,0.00013972,2]
[332800226,1721532649989,-500.0,0.00013972,2]
[332800227,1721532650000,-500.0,0.00013972,2]
[332800228,1721532650013,-1146.38,0.00013972,2]
[332800229,1721532650023,-500.0,0.00013972,2]
[332800230,1721532650033,-500.0,0.00013972,2]
[332800231,1721532650043,-500.0,0.00013972,2]
[332800232,1721532650054,-500.0,0.00013972,2]
[332800233,1721532650064,-4174.87,0.00013972,2]
[332800234,1721532650075,-578.55,0.00013972,2]
[332800235,1721532650086,-823.1,0.00013972,2]
[332800236,1721532650096,-1694.23,0.00013972,2]
[332800237,1721532650108,-500.0,0.00013972,2]
[332800238,1721532650121,-151.0,0.00013972,2]
[332800239,1721532650131,-500.0,0.00013972,2]
[332800240,1721532650141,-519.39971363,0.00013972,2]
[332800241,1721532650150,-1486.09,0.00013972,2]
[332800242,1721532650161,-500.0,0.00013972,2]
[332800243,1721532650171,-500.0,0.00013972,2]
[332800244,1721532650180,-500.0,0.00013972,2]
[332800245,1721532650190,-991.26,0.00013972,2]
[332800246,1721532650200,-500.0,0.00013972,2]
[332800247,1721532650210,-500.0,0.00013972,2]
[332800248,1721532650220,-533.14,0.00013972,2]
[332800249,1721532650231,-500.0,0.00013972,2]
[332800250,1721532650241,-500.0,0.00013972,2]
[332800251,1721532650251,-508.57805667,0.00013972,2]
[332800252,1721532650263,-500.0,0.00013972,2]
[332800253,1721532650273,-663.25,0.00013972,2]
[332800254,1721532650282,-614.64,0.00013972,2]
[332800255,1721532650292,-500.0,0.00013972,2]
[332800256,1721532650302,-500.0,0.00013972,2]
[332800257,1721532650311,-1223.88,0.00013972,2]
[332800258,1721532650321,-500.0,0.00013972,2]
[332800259,1721532650331,-500.0,0.00013972,2]
[332800260,1721532650345,-500.0,0.00013972,2]
[332800261,1721532650355,-500.0,0.00013972,2]
[332800262,1721532650365,-151.0,0.00013972,2]
[332800263,1721532650375,-151.0,0.00013972,2]
[332800264,1721532650385,-500.0,0.00013972,2]
[332800265,1721532650395,-500.0,0.00013972,2]
[332800266,1721532650417,-501.95092707,0.00013972,2]
[332800267,1721532650429,-511.69752163,0.00013972,2]
[332800268,1721532650441,-500.0,0.00013972,2]
[332800269,1721532650453,-500.0,0.00013972,2]
[332800270,1721532650463,-500.0,0.00013972,2]
[332800271,1721532650474,-500.0,0.00013972,2]
[332800272,1721532650485,-518.903678,0.00013972,2]
[332800273,1721532650496,-1811.52,0.00013972,2]
[332800274,1721532650506,-500.0,0.00013972,2]
[332800275,1721532650522,-504.33677994,0.00013972,2]
[332800276,1721532650533,-524.72,0.00013972,2]
[332800277,1721532650545,-500.0,0.00013972,2]
[332800278,1721532650556,-500.0,0.00013972,2]
[332800279,1721532650567,-552.99,0.00013972,2]
[332800280,1721532650577,-513.78154567,0.00013972,2]
[332800281,1721532650588,-500.0,0.00013972,2]
[332800282,1721532650599,-500.0,0.00013972,2]
[332800283,1721532650610,-500.0,0.00013972,2]
[332800284,1721532650620,-500.0,0.00013972,2]
[332800285,1721532650631,-500.0,0.00013972,2]
[332800286,1721532650642,-314.99,0.00013972,2]
[332800287,1721532650652,-809.08,0.00013972,2]
[332800288,1721532650662,-789.16,0.00013972,2]
[332800289,1721532650673,-500.0,0.00013972,2]
[332800290,1721532650683,-2621.65,0.00013972,2]
[332800291,1721532650694,-500.0,0.00013972,2]
[332800292,1721532650705,-500.0,0.00013972,2]
[332800293,1721532650716,-744.95,0.00013972,2]
[332800294,1721532650726,-537.44918105,0.00013972,2]
[332800295,1721532650738,-500.0,0.00013972,2]
[332800296,1721532650748,-500.0,0.00013972,2]
[332800297,1721532650759,-833.85,0.00013972,2]
[332800298,1721532650772,-500.0,0.00013972,2]
[332800299,1721532650782,-500.0,0.00013972,2]
[332800300,1721532650793,-1693.08,0.00013972,2]
[332800301,1721532650803,-500.0,0.00013972,2]
[332800302,1721532650813,-500.0,0.00013972,2]
[332800303,1721532650823,-1012.27,0.00013972,2]
[332800304,1721532650834,-500.0,0.00013972,2]
[332800305,1721532650844,-500.0,0.00013972,2]
[332800306,1721532650855,-500.0,0.00013972,2]
[332800307,1721532650865,-500.0,0.00013972,2]
[332800308,1721532650876,-500.0,0.00013972,2]
[332800309,1721532650887,-500.0,0.00013972,2]
[332800310,1721532650899,-500.0,0.00013972,2]
[332800311,1721532650909,-500.0,0.00013972,2]
[332800312,1721532650920,-600.01472195,0.00013972,2]
[332800313,1721532650930,-1962.59,0.00013972,2]
[332800314,1721532650941,-500.0,0.00013972,2]
[332800315,1721532650951,-1624.67,0.00013972,2]
[332800316,1721532650962,-2691.93,0.00013972,2]
[332800317,1721532650972,-175.382872,0.00013972,2]
[332800318,1721532650982,-500.0,0.00013972,2]
[332800319,1721532650992,-500.0,0.00013972,2]
[332800320,1721532651002,-500.0,0.00013972,2]
[332800321,1721532651012,-1976.44,0.00013972,2]
[332800322,1721532651022,-500.0,0.00013972,2]
[332800323,1721532651032,-500.0,0.00013972,2]
[332800324,1721532651042,-500.0,0.00013972,2]
[332800325,1721532651053,-500.0,0.00013972,2]
[332800326,1721532651064,-500.0,0.00013972,2]
[332800327,1721532651074,-500.0,0.00013972,2]
[332800328,1721532651084,-500.0,0.00013972,2]
[332800329,1721532651094,-500.0,0.00013972,2]
[332800330,1721532651104,-500.0,0.00013972,2]
[332800331,1721532651116,-551.1,0.00013972,2]
[332800332,1721532651126,-500.0,0.00013972,2]
[332800333,1721532651136,-500.0,0.00013972,2]
[332800334,1721532651147,-500.0,0.00013972,2]
[332800335,1721532651159,-385.16207719,0.00013972,2]
[332800336,1721532651169,-1643.36,0.00013972,2]
[332800337,1721532651179,-709.72,0.00013972,2]
[332800338,1721532651190,-500.0,0.00013972,2]
[332800339,1721532651202,-500.0,0.00013972,2]
[332800340,1721532651214,-500.0,0.00013972,2]
[332800341,1721532651225,-837.58,0.00013972,2]
[332800342,1721532651235,-668.01,0.00013972,2]
[332800343,1721532651245,-500.0,0.00013972,2]
[332800344,1721532651256,-500.0,0.00013972,2]
[332800345,1721532651270,-500.0,0.00013972,2]
[332800346,1721532651280,-500.0,0.00013972,2]
[332800347,1721532651293,-500.0,0.00013972,2]
[332800348,1721532651303,-506.25486992,0.00013972,2]
[332800349,1721532651315,-1195.72,0.00013972,2]
[332800350,1721532651326,-25318.78,0.00013972,2]
[332800351,1721532651336,-500.0,0.00013972,2]
[332800352,1721532651348,-500.0,0.00013972,2]
[332800353,1721532651360,-500.0,0.00013972,2]
[332800354,1721532651371,-2337.45,0.00013972,2]
[332800355,1721532651382,-601.89,0.00013972,2]
[332800356,1721532651394,-504.64,0.00013972,2]
[332800357,1721532651404,-500.0,0.00013972,2]
[332800358,1721532651414,-509.39,0.00013972,2]
[332800359,1721532651426,-1300.9,0.00013972,2]
[332800360,1721532651436,-500.0,0.00013972,2]
[332800361,1721532651448,-500.0,0.00013972,2]
[332800362,1721532651459,-732.99,0.00013972,2]